Cogmind - Beta 13 @@@ ROGUE MODE // 2024.04.07 @ 22:38:09 Player: LEWiKK Result: Destroyed by H-81 Overseer with Heavy Linear Accelerator Performance ------------- Evolutions (8) 4000 Regions Visited (22) 4400 Robots Destroyed (47) 235 Value Destroyed (1208) 1208 Prototype IDs (54) 1080 Alien Tech Used (2) 400 Bonus (2186) 2186 TOTAL SCORE: 13509 Bonus ------- High Alert Combat Kills 68 Follower Combat Kills 218 Entered DSFs 1000 Aligned with FarCom 300 Met Data Miner 300 Met Zhirov 300 Cogmind --------- Core Integrity 0/1450 Matter 300/300 Energy 98/100 System Corruption 0% Temperature Cool (0) Movement Core (50) Location -2/Research Parts ------- > --- POWER (1) -------- (None) > --- PROPULSION (4) --- (None) > --- UTILITY (14) ----- (None) > --- WEAPON (4) ------- (None) > --- INVENTORY (5) ---- Improved Hacking Suite Advanced Beam Cannon Makeshift Shrapnel Gun Dirty Datajack (20) Peak State ------------ > --- POWER ------------ Fusion Reactor > --- PROPULSION ------- Cooled Gravmag System Cooled Gravmag System Cooled Gravmag System Cesium-ion Thruster > --- UTILITY ---------- Advanced Energy Well Improved Matter Compressor Enhanced Optical Array Signal Interpreter Cloaking Device Advanced Hacking Suite > --- WEAPON ----------- Dirty Datajack > --- INVENTORY -------- Remote Shield Advanced Beam Cannon Dirty Datajack [Rating: 70] Favorites ----------- Power Ion Engine Engine Ion Engine Reactor Fusion Reactor Propulsion Aluminum Leg Leg Aluminum Leg Hover Unit Cooled Gravmag System Flight Unit Improved VTOL Module Utility Signal Interpreter Device ECM Suite Storage Small Storage Unit Processor Signal Interpreter Hackware Authchip [R/Combat] Protection Improved Light Armor Plating Weapon Light Assault Rifle Energy Gun Advanced Beam Rifle Energy Cannon Advanced Beam Cannon Ballistic Gun Light Assault Rifle Special Weapon Improved Remote Datajack Special Melee Weapon Dirty Datajack Build | -11 -10 -10 -10 -9 -8 -8 -7 -7 -7 -7 -6 -6 -6 -5 -5 -5 -5 -4 -4 -3 -3 -2 ------- Run | Yrd Mat Min Exi Min Mat Sto Fac Low Low Dat Pro Fac DSF Fac Upp Upp Zhi Pro Fac Res DSF Res Slots Evolved 16 | . . . . . 4 . 2 . . . . 2 . 2 . . . . 2 2 . 2 Power . | . . . . . . . . . . . . . . . . . . . . . . . Propulsion 2 | . . . . . 2 . . . . . . . . . . . . . . . . . Utility 12 | . . . . . 2 . . . . . . 2 . 2 . . . . 2 2 . 2 Weapon 2 | . . . . . . . 2 . . . . . . . . . . . . . . . Parts Attached 84 | 5 13 . . . 8 19 1 2 6 . . . 1 4 . 2 8 7 3 1 . 4 Power 10 | 1 1 . . . 2 3 . . 2 . . . . . . . 1 . . . . . Engine 9 | 1 1 . . . 2 3 . . 2 . . . . . . . . . . . . . Core . | . . . . . . . . . . . . . . . . . . . . . . . Reactor 1 | . . . . . . . . . . . . . . . . . 1 . . . . . Propulsion 31 | 2 5 . . . 1 5 . . 1 . . . . 1 . . 3 6 2 1 . 4 Treads . | . . . . . . . . . . . . . . . . . . . . . . . Leg 7 | 2 5 . . . . . . . . . . . . . . . . . . . . . Wheel . | . . . . . . . . . . . . . . . . . . . . . . . Hover 11 | . . . . . . . . . . . . . . . . . 3 5 2 1 . . Flight 13 | . . . . . 1 5 . . 1 . . . . 1 . . . 1 . . . 4 Utility 18 | 1 2 . . . 3 2 . 2 1 . . . . 1 . 1 4 . 1 . . . Device 6 | . 1 . . . 2 . . . . . . . . 1 . . 1 . 1 . . . Storage 3 | 1 . . . . . . . . . . . . . . . . 2 . . . . . Processor 2 | . 1 . . . . . . . . . . . . . . 1 . . . . . . Hackware 3 | . . . . . . . . 2 . . . . . . . . 1 . . . . . Protection 4 | . . . . . 1 2 . . 1 . . . . . . . . . . . . . Artifact . | . . . . . . . . . . . . . . . . . . . . . . . Weapon 25 | 1 5 . . . 2 9 1 . 2 . . . 1 2 . 1 . 1 . . . . Energy Gun 4 | . . . . . . 3 1 . . . . . . . . . . . . . . . Energy Cannon 2 | . . . . . . 1 . . 1 . . . . . . . . . . . . . Ballistic Gun 12 | 1 5 . . . 2 3 . . 1 . . . . . . . . . . . . . Ballistic Cannon . | . . . . . . . . . . . . . . . . . . . . . . . Launcher . | . . . . . . . . . . . . . . . . . . . . . . . Special Weapon 2 | . . . . . . 1 . . . . . . . 1 . . . . . . . . Impact Weapon . | . . . . . . . . . . . . . . . . . . . . . . . Slashing Weapon . | . . . . . . . . . . . . . . . . . . . . . . . Piercing Weapon . | . . . . . . . . . . . . . . . . . . . . . . . Special Melee Weapon 5 | . . . . . . 1 . . . . . . 1 1 . 1 . 1 . . . . Unidentified Prototypes 13 | . . . . . . 5 . . . . . . . . . . 6 . . . . 2 Parts Lost 40 | . . . . 2 3 9 . . 1 . . . 2 6 4 . . 3 2 1 2 5 Power 6 | . . . . 1 1 2 . . . . . . . 1 . . . 1 . . . . Propulsion 13 | . . . . 1 . 2 . . . . . . 1 2 1 . . . 1 . 1 4 Utility 13 | . . . . . 1 2 . . 1 . . . 1 2 1 . . 1 1 1 1 1 Weapon 8 | . . . . . 1 3 . . . . . . . 1 2 . . 1 . . . . Highest Loss Streak 6 | . . . . 2 2 3 . . 1 . . . 2 6 4 . . 1 2 3 2 5 To Critical Strikes 1 | . . . . . . 1 . . . . . . . . . . . . . . . . Average Slot Usage (%) 70 | . 88 100 100 93 60 73 34 44 59 69 69 60 60 28 19 9 32 60 50 38 33 23 Engine 8 | . 14 14 14 10 7 8 . . 2 7 7 6 6 1 . . . . . . . . Leg 10 | . 24 28 28 24 . . . . . . . . . . . . . . . . . . Hover 1 | . . . . . . . . . . . . . . . . . 2 16 19 19 16 2 Flight 6 | . . . . . 9 15 15 15 19 23 23 20 20 7 2 . . . . . . 10 Device 3 | . 13 . . . 2 6 . . . . . . . . . . 3 4 5 4 2 . Storage 8 | . 14 14 14 14 9 9 7 7 2 . . . . . . . 4 11 10 9 9 7 Processor 8 | . . 14 14 14 9 9 7 7 7 7 7 6 6 5 5 5 11 11 9 4 4 3 Hackware 3 | . . . . . . . . 6 15 15 15 13 13 7 3 . 1 5 5 . . . Protection 2 | . . . . . 5 9 . . 3 7 7 6 6 . . . . . . . . . Energy Gun 2 | . . . . . . 6 3 7 7 7 7 6 6 2 . . . . . . . . Ballistic Gun 12 | . 20 28 28 28 17 7 . . . . . . . . . . . . . . . . Naked Turns 17 | . . . . . . . . . . . . . . . . . . . . . . 17 Heaviest Build 30 | 10 15 12 12 12 18 30 7 7 18 18 18 18 18 11 5 1 21 21 12 12 12 7 Greatest Support 50 | 20 20 20 20 20 50 50 10 10 18 18 18 18 18 13 7 3 33 33 46 45 45 34 Greatest Overweight (x) 6 | 1 1 . . . . 2 . . . . . . . 2 1 . 6 1 . . . 2 Average Overweight (x) . | . . . . . . . . . . . . . . . . . . . . . . . Largest Inventory Capacity 8 | 8 8 8 8 8 8 8 8 8 8 5 5 5 5 5 5 5 5 5 5 5 5 5 Average Capacity 6 | 7 8 8 8 8 8 8 8 8 6 5 5 5 5 5 5 5 5 5 5 5 5 5 Most Carried 8 | 5 8 8 8 8 7 8 8 8 7 5 5 5 5 5 4 5 5 5 4 3 3 5 Average Carried 5 | 1 6 7 7 8 3 5 7 7 5 5 5 5 4 4 3 4 3 3 3 3 3 3 Final Capacity 8 | 8 8 8 8 8 8 8 8 8 5 5 5 5 5 5 5 5 5 5 5 5 5 5 Final Carried 8 | 1 8 8 8 8 2 7 7 7 5 5 5 5 5 3 4 4 3 4 4 3 3 4 Class Distribution -------------------- 63% | Mutant 31% | Scavenger-Mutant 5% | Sprinter Dominant Class ---------------- Mutant | -10/Materials Scavenger-Mutant | -10/Mines Scavenger-Mutant | -10/Exiles Scavenger-Mutant | -9/Mines Scavenger-Mutant | -8/Materials Mutant | -8/Storage Mutant | -7/Factory Mutant | -7/Lower Caves Mutant | -7/Lower Caves Mutant | -7/Data Miner Mutant | -6/Proximity Caves Mutant | -6/Factory Mutant | -6/DSF Mutant | -5/Factory Mutant | -5/Upper Caves Mutant | -5/Upper Caves Mutant | -5/Zhirov Mutant | -4/Proximity Caves Mutant | -4/Factory Mutant | -3/Research Mutant | -3/DSF Sprinter | -2/Research Resources | -11 -10 -10 -10 -9 -8 -8 -7 -7 -7 -7 -6 -6 -6 -5 -5 -5 -5 -4 -4 -3 -3 -2 ----------- Run | Yrd Mat Min Exi Min Mat Sto Fac Low Low Dat Pro Fac DSF Fac Upp Upp Zhi Pro Fac Res DSF Res Matter Collected 1532 | 248 216 13 . 27 68 436 . 30 80 . . . . . . 30 . 236 . . 6 142 Remotely . | . . . . . . . . . . . . . . . . . . . . . . . Salvage Created 1418 | . 414 36 . 44 134 769 . . 21 . . . . . . . . . . . . . Parts 122 | . 46 7 . 8 14 47 . . . . . . . . . . . . . . . . Haulers Intercepted . | . . . . . . . . . . . . . . . . . . . . . . . Recyclers Shooed 1 | . . . . . . 1 . . . . . . . . . . . . . . . . Parts Field Recycled . | . . . . . . . . . . . . . . . . . . . . . . . Retrieved Matter . | . . . . . . . . . . . . . . . . . . . . . . . Parts Self-Destructed 9 | . . . . . . . . . . . 9 . . . . . . . . . . . Prevented . | . . . . . . . . . . . . . . . . . . . . . . . Kills | -11 -10 -10 -10 -9 -8 -8 -7 -7 -7 -7 -6 -6 -6 -5 -5 -5 -5 -4 -4 -3 -3 -2 ------- Run | Yrd Mat Min Exi Min Mat Sto Fac Low Low Dat Pro Fac DSF Fac Upp Upp Zhi Pro Fac Res DSF Res Combat Hostiles Destroyed 43 | . 13 3 . 3 7 17 . . . . . . . . . . . . . . . . Guns 39 | . 13 3 . 3 6 14 . . . . . . . . . . . . . . . . Cannons 1 | . . . . . . 1 . . . . . . . . . . . . . . . . AOE 2 | . . . . . 1 1 . . . . . . . . . . . . . . . . Classes Destroyed 10 | . 4 . . . 2 4 . . . . . . . . . . . . . . . . Worker 1 | . . . . . . 1 . . . . . . . . . . . . . . . . Builder 1 | . 1 . . . . . . . . . . . . . . . . . . . . . Operator 1 | . . . . . . 1 . . . . . . . . . . . . . . . . Watcher 1 | . 1 . . . . . . . . . . . . . . . . . . . . . Swarmer 19 | . 6 3 . 3 4 3 . . . . . . . . . . . . . . . . Cutter 2 | . . . . . 2 . . . . . . . . . . . . . . . . . Grunt 13 | . 7 . . . . 6 . . . . . . . . . . . . . . . . Brawler 1 | . . . . . . 1 . . . . . . . . . . . . . . . . Sentry 7 | . . . . . 1 6 . . . . . . . . . . . . . . . . Hunter 1 | . . . . . . 1 . . . . . . . . . . . . . . . . Best Kill Streak 4 | . 3 3 . 3 4 3 . . . . . . . . . . . . . . . . Combat Bots Only 4 | . 3 3 . 3 4 3 . . . . . . . . . . . . . . . . Max Kills in Single Turn 2 | . 1 1 . 1 1 2 . . . . . . . . . . . . . . . . Gunslinging . | . . . . . . . . . . . . . . . . . . . . . . . Exploded 1 | . . . . . 1 1 . . . . . . . . . . . . . . . . Melee . | . . . . . . . . . . . . . . . . . . . . . . . Uniques/NPCs Destroyed . | . . . . . . . . . . . . . . . . . . . . . . . Combat | -11 -10 -10 -10 -9 -8 -8 -7 -7 -7 -7 -6 -6 -6 -5 -5 -5 -5 -4 -4 -3 -3 -2 -------- Run | Yrd Mat Min Exi Min Mat Sto Fac Low Low Dat Pro Fac DSF Fac Upp Upp Zhi Pro Fac Res DSF Res Hostile Shots Fired 745 | . 72 6 . 39 76 174 . 3 12 . 30 . 18 46 59 . . 58 24 . 9 119 Missed 308 | . 24 3 . 8 27 60 . 2 8 . 21 . 6 22 27 . . 23 13 . 7 57 Damage Taken 7526 | . 445 23 . 250 849 1565 . 13 47 . 272 . 242 443 484 . . 712 171 . 107 1903 Core 3218 | . 102 7 . 98 60 403 . . . . 31 . 70 325 346 . . 243 28 . 33 1472 Absorbed by Shields 174 | . . . . . . 152 . . . . . . . . . . . . 22 . . . Regen/Repaired (Parts) 163 | . . . . . . 163 . . . . . . . . . . . . . . . . Core Remaining (%) 64 | 100 . . . 17 . 15 . . . . 95 . 91 . . . . 6 97 . 97 . Volleys Fired 204 | . 60 4 . 13 34 84 . . 3 . 4 . . 2 . . . . . . . . Largest 2 | . 2 2 . 2 2 2 . . 1 . 1 . . 1 . . . . . . . . Hottest 161 | . 40 40 . 40 40 161 . . 61 . 61 . . 7 . . . . . . . . Shots Fired 331 | . 83 8 . 26 67 138 . . 3 . 4 . . 2 . . . . . . . . Gun 326 | . 83 8 . 26 67 135 . . 3 . 4 . . . . . . . . . . . Cannon . | . . . . . . . . . . . . . . . . . . . . . . . Launcher . | . . . . . . . . . . . . . . . . . . . . . . . Special 5 | . . . . . . 3 . . . . . . . 2 . . . . . . . . Kinetic 269 | . 83 8 . 26 67 85 . . . . . . . . . . . . . . . . Thermal 23 | . . . . . . 16 . . 3 . 4 . . . . . . . . . . . Explosive . | . . . . . . . . . . . . . . . . . . . . . . . Electromagnetic 37 | . . . . . . 37 . . . . . . . . . . . . . . . . Robot Hit Streak 10 | . 9 4 . 5 7 10 . . 6 . . . . 1 . . . . . . . . Robot Miss Streak 6 | . 6 1 . 5 6 3 . . . . 4 . . 5 . . . . . . . . Penetration Max . | . . . . . . . . . . . . . . . . . . . . . . . Secondary Targets 4 | . . 1 . 1 1 1 . . . . . . . . . . . . . . . . Max Gunslinging Chain 1 | . . 1 . 1 1 1 . . . . . . . . . . . . . . . . Shots Hit Robots 203 | . 46 5 . 12 38 96 . . 3 . . . 2 1 . . . . . . . . Core Hits 87 | . 25 4 . 5 15 37 . . 1 . . . . . . . . . . . . . Critical Kills 2 | . . . . . . 2 . . . . . . . . . . . . . . . . Critical Parts Destroyed 1 | . . . . . . 1 . . . . . . . . . . . . . . . . Critical Strikes 4 | . . . . . . 4 . . . . . . . . . . . . . . . . Burn 1 | . . . . . . 1 . . . . . . . . . . . . . . . . Destroy 3 | . . . . . . 3 . . . . . . . . . . . . . . . . Melee Attacks 2 | . . . . . . . . . . . . . 2 . . . . . . . . . Impact . | . . . . . . . . . . . . . . . . . . . . . . . Slashing . | . . . . . . . . . . . . . . . . . . . . . . . Piercing . | . . . . . . . . . . . . . . . . . . . . . . . Sneak Attacks 2 | . . . . . . . . . . . . . 2 . . . . . . . . . Combat Hostiles 2 | . . . . . . . . . . . . . 2 . . . . . . . . . Follow-up Attacks . | . . . . . . . . . . . . . . . . . . . . . . . Damage Inflicted 2552 | . 503 37 . 86 308 1553 . . 60 . . . . . 5 . . . . . . . Guns 2336 | . 500 37 . 86 308 1345 . . 60 . . . . . . . . . . . . . Cannons . | . . . . . . . . . . . . . . . . . . . . . . . Explosions 160 | . . . . . . 160 . . . . . . . . . . . . . . . . Melee . | . . . . . . . . . . . . . . . . . . . . . . . Ramming 8 | . 3 . . . . . . . . . . . . . 5 . . . . . . . Kinetic 1586 | . 500 37 . 86 308 655 . . . . . . . . . . . . . . . . Thermal 408 | . . . . . . 348 . . 60 . . . . . . . . . . . . . Explosive . | . . . . . . . . . . . . . . . . . . . . . . . Electromagnetic 550 | . . . . . . 550 . . . . . . . . . . . . . . . . Impact . | . . . . . . . . . . . . . . . . . . . . . . . Slashing . | . . . . . . . . . . . . . . . . . . . . . . . Piercing . | . . . . . . . . . . . . . . . . . . . . . . . Highest Corruption 6 | . . . . . . 1 . . . . . . . . . . . 6 . . . . Average Corruption 2 | . . . . . . 1 . . . . . . . . . . . 4 . . . . Corruption Purged . | . . . . . . . . . . . . . . . . . . . . . . . Corruption Blocked . | . . . . . . . . . . . . . . . . . . . . . . . Effects 3 | . . . . . . . . . . . . . . . . . . 3 . . . . Matter Fused 2 | . . . . . . . . . . . . . . . . . . 2 . . . . Data Loss (major) 1 | . . . . . . . . . . . . . . . . . . 1 . . . . Overload Shots . | . . . . . . . . . . . . . . . . . . . . . . . Overflow Damage . | . . . . . . . . . . . . . . . . . . . . . . . Projectiles . | . . . . . . . . . . . . . . . . . . . . . . . Explosions . | . . . . . . . . . . . . . . . . . . . . . . . Melee . | . . . . . . . . . . . . . . . . . . . . . . . Knockbacks . | . . . . . . . . . . . . . . . . . . . . . . . Impact . | . . . . . . . . . . . . . . . . . . . . . . . Kinetic . | . . . . . . . . . . . . . . . . . . . . . . . Secondary . | . . . . . . . . . . . . . . . . . . . . . . . Self-Inflicted Damage 31 | . . . . . . 29 . . . . . . . . 2 . . . . . . . Shots 1 | . . . . . . 1 . . . . . . . . . . . . . . . . Rammed 1 | . . . . . . . . . . . . . . . 1 . . . . . . . Targets Rammed 3 | . 1 1 . . . . . . . . . . . . 1 . . . . . . . Kicked 2 | . 1 1 . . . . . . . . . . . . . . . . . . . . Crushed . | . . . . . . . . . . . . . . . . . . . . . . . Highest Temperature 370 | . 6 . . . 32 370 . . . . 48 . . . . . . 18 . . . . Average Temperature 113 | . 6 . . . 4 133 . . . . 21 . . . . . . 18 . . . . Received Heat Transfer 1268 | . 144 . . . 63 630 . 9 9 . 48 . 18 138 . . . 173 27 . . 9 Effects 5 | . . . . . . 5 . . . . . . . . . . . . . . . . Interference 2 | . . . . . . 2 . . . . . . . . . . . . . . . . Matter Decay 1 | . . . . . . 1 . . . . . . . . . . . . . . . . Short Circuit 1 | . . . . . . 1 . . . . . . . . . . . . . . . . Damage (minor) 1 | . . . . . . 1 . . . . . . . . . . . . . . . . Siege Activations . | . . . . . . . . . . . . . . . . . . . . . . . Robots Corrupted 1 | . . . . . . 1 . . . . . . . . . . . . . . . . Combat Hostiles 1 | . . . . . . 1 . . . . . . . . . . . . . . . . Parts Fried 2 | . . . . . . 2 . . . . . . . . . . . . . . . . Impact Corruptions . | . . . . . . . . . . . . . . . . . . . . . . . Robots Melted . | . . . . . . . . . . . . . . . . . . . . . . . Combat Hostiles . | . . . . . . . . . . . . . . . . . . . . . . . Parts Melted 1 | . . . . . . 1 . . . . . . . . . . . . . . . . Heat Transferred 734 | . . . . . . 623 . . 111 . . . . . . . . . . . . . Parts Sabotaged . | . . . . . . . . . . . . . . . . . . . . . . . Parts Stolen . | . . . . . . . . . . . . . . . . . . . . . . . Parts Stripped . | . . . . . . . . . . . . . . . . . . . . . . . Power Chain Reactions 1 | . . . . . . 1 . . . . . . . . . . . . . . . . Alert | -11 -10 -10 -10 -9 -8 -8 -7 -7 -7 -7 -6 -6 -6 -5 -5 -5 -5 -4 -4 -3 -3 -2 ------- Run | Yrd Mat Min Exi Min Mat Sto Fac Low Low Dat Pro Fac DSF Fac Upp Upp Zhi Pro Fac Res DSF Res Peak Influence 675 | . 174 115 . 50 189 675 222 . . . . 309 246 290 . . . . 129 73 57 150 Initial 309 | . . 37 . . 19 75 222 . . . . 309 216 118 . . . . 34 62 57 20 Average 145 | . 71 50 . 15 105 339 222 . . . . 309 224 169 . . . . 67 70 45 54 Maximum Alert Level 2 | . . . . . . 2 1 . . . . 1 1 1 . . . . . . . . Low Security (%) 73 | 100 100 100 . 100 100 18 . . . . . . . 63 . . . . 100 100 100 100 Level 1 17 | . . . . . . 43 100 . . . . 100 100 36 . . . . . . . . Level 2 9 | . . . . . . 37 . . . . . . . . . . . . . . . . Level 3 . | . . . . . . . . . . . . . . . . . . . . . . . Level 4 . | . . . . . . . . . . . . . . . . . . . . . . . Level 5 . | . . . . . . . . . . . . . . . . . . . . . . . High Security . | . . . . . . . . . . . . . . . . . . . . . . . Max Security . | . . . . . . . . . . . . . . . . . . . . . . . Squads Dispatched 23 | . 4 . . . 2 7 . . . . . . 1 2 . . . 1 3 1 . 2 Investigation 12 | . 3 . . . . 2 . . . . . . . 2 . . . . 3 1 . 1 Extermination . | . . . . . . . . . . . . . . . . . . . . . . . Reinforcement 8 | . 1 . . . 2 3 . . . . . . 1 . . . . . . . . 1 Assault 3 | . . . . . . 2 . . . . . . . . . . . 1 . . . . Garrison . | . . . . . . . . . . . . . . . . . . . . . . . Intercept . | . . . . . . . . . . . . . . . . . . . . . . . Searches Triggered . | . . . . . . . . . . . . . . . . . . . . . . . Data Miner Redirects 4 | . . . . . . . . . . . . . . 2 . . . . 1 1 . . Construction Impeded . | . . . . . . . . . . . . . . . . . . . . . . . Haulers Reinforced . | . . . . . . . . . . . . . . . . . . . . . . . Active Scanning Responses . | . . . . . . . . . . . . . . . . . . . . . . . Cargo Convoy Interrupts . | . . . . . . . . . . . . . . . . . . . . . . . Stealth | -11 -10 -10 -10 -9 -8 -8 -7 -7 -7 -7 -6 -6 -6 -5 -5 -5 -5 -4 -4 -3 -3 -2 --------- Run | Yrd Mat Min Exi Min Mat Sto Fac Low Low Dat Pro Fac DSF Fac Upp Upp Zhi Pro Fac Res DSF Res Distress Signals 7 | . 2 . . . . 4 . . . . . . . . . . . . 1 . . . Communications Jammed . | . . . . . . . . . . . . . . . . . . . . . . . Distress Signals . | . . . . . . . . . . . . . . . . . . . . . . . Times Spotted 195 | . 28 3 . 4 14 51 . 4 5 . 3 . 7 15 5 . . 19 14 . 3 20 Peak Tracking Total 15 | . 6 3 . 4 5 13 . 4 4 . 2 . 6 9 4 . . 12 13 . 3 15 Tactical Retreats 29 | . 4 . . . 2 8 . . 3 . 1 . 1 3 1 . . 2 1 . . 3 Traps | -11 -10 -10 -10 -9 -8 -8 -7 -7 -7 -7 -6 -6 -6 -5 -5 -5 -5 -4 -4 -3 -3 -2 ------- Run | Yrd Mat Min Exi Min Mat Sto Fac Low Low Dat Pro Fac DSF Fac Upp Upp Zhi Pro Fac Res DSF Res Traps Triggered 8 | . 3 . . . . 1 . . . . . . . 1 . . . . . . 3 . Indirectly . | . . . . . . . . . . . . . . . . . . . . . . . Trap Hack Attempts 55 | . . . . . . 55 . . . . . . . . . . . . . . . . Triggered . | . . . . . . . . . . . . . . . . . . . . . . . Disarmed 6 | . . . . . . 6 . . . . . . . . . . . . . . . . Reprogrammed . | . . . . . . . . . . . . . . . . . . . . . . . Reused . | . . . . . . . . . . . . . . . . . . . . . . . Traps Extracted . | . . . . . . . . . . . . . . . . . . . . . . . Installed . | . . . . . . . . . . . . . . . . . . . . . . . Triggered 3 | . . . . . . . . . 2 . . . . . 1 . . . . . . . Machines | -11 -10 -10 -10 -9 -8 -8 -7 -7 -7 -7 -6 -6 -6 -5 -5 -5 -5 -4 -4 -3 -3 -2 ---------- Run | Yrd Mat Min Exi Min Mat Sto Fac Low Low Dat Pro Fac DSF Fac Upp Upp Zhi Pro Fac Res DSF Res Machines Disabled 2 | . 1 . . . . 1 . . . . . . . . . . . . . . . . Max in Single Turn 1 | . 1 . . . . 1 . . . . . . . . . . . . . . . . Machines Repaired . | . . . . . . . . . . . . . . . . . . . . . . . Machines Dismantled . | . . . . . . . . . . . . . . . . . . . . . . . Machines Sabotaged . | . . . . . . . . . . . . . . . . . . . . . . . Overloaded Fab Kills . | . . . . . . . . . . . . . . . . . . . . . . . Hacking | -11 -10 -10 -10 -9 -8 -8 -7 -7 -7 -7 -6 -6 -6 -5 -5 -5 -5 -4 -4 -3 -3 -2 --------- Run | Yrd Mat Min Exi Min Mat Sto Fac Low Low Dat Pro Fac DSF Fac Upp Upp Zhi Pro Fac Res DSF Res Machines Accessed 47 | . 5 . 2 . 1 7 2 1 1 4 1 1 . 5 . 2 9 . 3 2 . 1 Terminals 24 | . 5 . . . 1 6 1 . . . 1 1 . 4 . . . . 3 2 . . Fabricators 2 | . . . . . . . 1 . . . . . . . . . . . . . . 1 Repair Stations 1 | . . . . . . 1 . . . . . . . . . . . . . . . . Recycling Units 1 | . . . . . . . . . . . . . . 1 . . . . . . . . Scanalyzers . | . . . . . . . . . . . . . . . . . . . . . . . Garrison Access . | . . . . . . . . . . . . . . . . . . . . . . . Total Hacks 171 | . 22 . 11 . 4 18 3 1 1 31 5 1 . 8 . 2 48 . 10 3 . 3 Successful 137 | . 10 . 11 . 3 11 2 1 1 31 5 1 . 4 . 2 48 . 5 2 . . Failed 33 | . 12 . . . 1 7 1 . . . . . . 4 . . . . 4 1 . 3 Catastrophic 4 | . . . . . . . 1 . . . . . . . . . . . 1 1 . 1 Database Lockouts 1 | . . . . . . . . . . . . . . . . . . . 1 . . . Manual 52 | . 19 . 1 . 3 16 1 1 1 . . . . 4 . . . . 4 2 . . Terminals 68 | . 22 . . . 4 15 1 . . . 5 1 . 7 . . . . 10 3 . . Fabricators 5 | . . . . . . . 2 . . . . . . . . . . . . . . 3 Repair Stations 3 | . . . . . . 3 . . . . . . . . . . . . . . . . Recycling Units 1 | . . . . . . . . . . . . . . 1 . . . . . . . . Scanalyzers . | . . . . . . . . . . . . . . . . . . . . . . . Garrison Access . | . . . . . . . . . . . . . . . . . . . . . . . Terminal Hacks 118 | . 5 . 11 . 2 5 . 1 1 31 5 1 . 2 . 2 48 . 3 1 . . Record 67 | . . . 10 . . . . . 1 11 5 . . 1 . . 36 . 3 . . . Part Schematic 15 | . . . . . . . . . . 11 . . . . . . 4 . . . . . Robot Schematic 6 | . . . . . . . . . . 6 . . . . . . . . . . . . Robot Analysis 4 | . . . . . . . . . . . . . . . . . 4 . . . . . Prototype ID Bank 8 | . 1 . . . . . . . . 3 . . . . . . 4 . . . . . Open Door 4 | . . . . . . 1 . 1 . . . . . . . 2 . . . . . . Open DSF 3 | . . . . . . . . . . . . 1 . 1 . . . . . 1 . . Branch Access Points 2 | . 1 . . . . 1 . . . . . . . . . . . . . . . . Emergency Access Points 4 | . 1 . . . 1 2 . . . . . . . . . . . . . . . . Alert Level 1 | . . . . . 1 . . . . . . . . . . . . . . . . . Unreport Threat 1 | . 1 . . . . . . . . . . . . . . . . . . . . . Locate Traps 1 | . . . . . . 1 . . . . . . . . . . . . . . . . Zone Layout 1 | . 1 . . . . . . . . . . . . . . . . . . . . . Derelict Proto ID Bank 1 | . . . 1 . . . . . . . . . . . . . . . . . . . Fabricator Hacks 2 | . . . . . . . 2 . . . . . . . . . . . . . . . Network Status 1 | . . . . . . . 1 . . . . . . . . . . . . . . . Build 1 | . . . . . . . 1 . . . . . . . . . . . . . . . Repair Station Hacks 2 | . . . . . . 2 . . . . . . . . . . . . . . . . Scan Component 1 | . . . . . . 1 . . . . . . . . . . . . . . . . Repair 1 | . . . . . . 1 . . . . . . . . . . . . . . . . Recycling Unit Hacks . | . . . . . . . . . . . . . . . . . . . . . . . Scanalyzer . | . . . . . . . . . . . . . . . . . . . . . . . Garrison Access Hacks . | . . . . . . . . . . . . . . . . . . . . . . . Unauthorized Hacks 15 | . 5 . . . 1 4 . . . . . . . 2 . . . . 2 1 . . Terminals 15 | . 5 . . . 1 4 . . . . . . . 2 . . . . 2 1 . . Assimilate 2 | . . . . . . . . . . . . . . 2 . . . . . . . . Botnet 13 | . 5 . . . 1 4 . . . . . . . . . . . . 2 1 . . Fabricators . | . . . . . . . . . . . . . . . . . . . . . . . Repair Stations . | . . . . . . . . . . . . . . . . . . . . . . . Recycling Units . | . . . . . . . . . . . . . . . . . . . . . . . Scanalyzers . | . . . . . . . . . . . . . . . . . . . . . . . Garrison Access . | . . . . . . . . . . . . . . . . . . . . . . . Data Cores Recovered . | . . . . . . . . . . . . . . . . . . . . . . . Used . | . . . . . . . . . . . . . . . . . . . . . . . Hacking Detections 23 | . 4 . . . 1 8 2 . . . . . . 3 . . . . 3 1 . 1 Full Trace Events 11 | . 1 . . . . 4 . . . . . . . 1 . . . . 3 1 . 1 Feedback Events 2 | . . . . . . 1 . . . . . . . . . . . . . 1 . . Corruption 1 | . . . . . . 1 . . . . . . . . . . . . . . . . Hackware Fried 1 | . . . . . . . . . . . . . . . . . . . . 1 . . Feedback Blocked . | . . . . . . . . . . . . . . . . . . . . . . . Robot Schematics Acquired 6 | . . . . . . . . . . 6 . . . . . . . . . . . . Robots Built . | . . . . . . . . . . . . . . . . . . . . . . . Authchips . | . . . . . . . . . . . . . . . . . . . . . . . Time . | . . . . . . . . . . . . . . . . . . . . . . . Total Robot Build Rating . | . . . . . . . . . . . . . . . . . . . . . . . Part Schematics Acquired 15 | . . . . . . . . . . 11 . . . . . . 4 . . . . . Parts Built . | . . . . . . . . . . . . . . . . . . . . . . . Authchips . | . . . . . . . . . . . . . . . . . . . . . . . Time 95 | . . . . . . . 95 . . . . . . . . . . . . . . . Total Part Build Rating . | . . . . . . . . . . . . . . . . . . . . . . . Parts Repaired 1 | . . . . . . 1 . . . . . . . . . . . . . . . . Time 19 | . . . . . . 19 . . . . . . . . . . . . . . . . Parts Recycled . | . . . . . . . . . . . . . . . . . . . . . . . Recycled Matter . | . . . . . . . . . . . . . . . . . . . . . . . Retrieved Matter . | . . . . . . . . . . . . . . . . . . . . . . . Retrieved Components . | . . . . . . . . . . . . . . . . . . . . . . . Parts Scanalyzed . | . . . . . . . . . . . . . . . . . . . . . . . Part Schematics Acquired . | . . . . . . . . . . . . . . . . . . . . . . . Parts Damaged . | . . . . . . . . . . . . . . . . . . . . . . . Bothacking | -11 -10 -10 -10 -9 -8 -8 -7 -7 -7 -7 -6 -6 -6 -5 -5 -5 -5 -4 -4 -3 -3 -2 ------------ Run | Yrd Mat Min Exi Min Mat Sto Fac Low Low Dat Pro Fac DSF Fac Upp Upp Zhi Pro Fac Res DSF Res Used RIF Installer . | . . . . . . . . . . . . . . . . . . . . . . . Robots Hacked 1 | . . . . . . . . . . . . . . 1 . . . . . . . . Non-combat 1 | . . . . . . . . . . . . . . 1 . . . . . . . . Combat . | . . . . . . . . . . . . . . . . . . . . . . . Robot Hacks Applied 1 | . . . . . . . . . . . . . . 1 . . . . . . . . parse_system 1 | . . . . . . . . . . . . . . 1 . . . . . . . . Relay Couplers Released . | . . . . . . . . . . . . . . . . . . . . . . . Fabnet Peak Effective % . | . . . . . . . . . . . . . . . . . . . . . . . Robots Rewired . | . . . . . . . . . . . . . . . . . . . . . . . Allies Hacked . | . . . . . . . . . . . . . . . . . . . . . . . Hacks Repelled . | . . . . . . . . . . . . . . . . . . . . . . . Allies | -11 -10 -10 -10 -9 -8 -8 -7 -7 -7 -7 -6 -6 -6 -5 -5 -5 -5 -4 -4 -3 -3 -2 -------- Run | Yrd Mat Min Exi Min Mat Sto Fac Low Low Dat Pro Fac DSF Fac Upp Upp Zhi Pro Fac Res DSF Res Total Allies 5 | . . 2 . . . 2 . . . . 1 . . . . . . . . . . . Largest Group 2 | . . 2 2 . . 2 . . . . 1 . . . . . . . . . . . Highest-Rated Group 96 | . . 49 49 . . 62 . . . . 96 . . . . . . . . . . . Highest-Rated Ally 96 | . . 31 31 . . 31 . . . . 96 . . . . . . . . . . . Total Orders . | . . . . . . . . . . . . . . . . . . . . . . . Ally Attacks 40 | . . 2 . . . 20 . . . . 18 . . . . . . . . . . . Total Damage 1411 | . . 43 . . . 315 . . . . 1053 . . . . . . . . . . . Kills 9 | . . . . . . 4 . . . . 5 . . . . . . . . . . . Allies Corrupted . | . . . . . . . . . . . . . . . . . . . . . . . Allies Melted . | . . . . . . . . . . . . . . . . . . . . . . . Intel | -11 -10 -10 -10 -9 -8 -8 -7 -7 -7 -7 -6 -6 -6 -5 -5 -5 -5 -4 -4 -3 -3 -2 ------- Run | Yrd Mat Min Exi Min Mat Sto Fac Low Low Dat Pro Fac DSF Fac Upp Upp Zhi Pro Fac Res DSF Res Robot Analysis Total 4 | . . . . . . . . . . . . . . . . . 4 . . . . . Derelict Logs Recovered 11 | . . . . 1 . . . 2 1 . 2 . . . 1 2 . 2 . . . . Drone Launches . | . . . . . . . . . . . . . . . . . . . . . . . Drone Recoveries . | . . . . . . . . . . . . . . . . . . . . . . . Exploration | -11 -10 -10 -10 -9 -8 -8 -7 -7 -7 -7 -6 -6 -6 -5 -5 -5 -5 -4 -4 -3 -3 -2 ------------- Run | Yrd Mat Min Exi Min Mat Sto Fac Low Low Dat Pro Fac DSF Fac Upp Upp Zhi Pro Fac Res DSF Res Turns Passed 5576 | 57 855 474 729 209 197 827 58 102 280 35 444 29 44 254 138 121 135 266 109 54 17 142 Spaces Moved 7456 | 37 473 377 602 142 159 798 163 288 696 95 789 78 105 540 280 231 194 585 241 132 30 421 Core 546 | 14 . . . . . . . . . . . . . . 121 231 141 . . . . 39 Treads . | . . . . . . . . . . . . . . . . . . . . . . . Legs 1617 | 23 473 377 602 142 . . . . . . . . . . . . . . . . . . Wheels . | . . . . . . . . . . . . . . . . . . . . . . . Hover 1088 | . . . . . . . . . . . . . . . . . 53 585 241 132 30 47 Flight 4205 | . . . . . 159 798 163 288 696 95 789 78 105 540 159 . . . . . . 335 Fastest Speed 24 | 50 120 120 120 120 50 27 34 34 34 37 37 37 37 39 45 50 42 42 40 40 40 24 Average Speed 58 | 105 130 120 120 120 50 42 34 34 35 37 37 37 37 44 48 50 52 42 42 40 42 31 Slowest Speed 350 | 120 190 120 120 120 50 174 34 34 37 37 37 37 44 180 100 50 350 100 45 40 45 150 Overloaded Moves . | . . . . . . . . . . . . . . . . . . . . . . . Propulsion Burnouts . | . . . . . . . . . . . . . . . . . . . . . . . Robots Hopped 58 | . . . . . 3 29 . 1 2 . . . 1 8 . . . . . . . 14 Cave-ins Triggered . | . . . . . . . . . . . . . . . . . . . . . . . Teleports 1 | . . . . . . . . . . . . . . . . . 1 . . . . . Exploration Rate (%) 45 | 3 62 70 88 28 15 73 5 57 81 72 80 2 72 21 47 43 63 84 13 4 40 17 Regions Visited 22 Branch Regions 12 Pre-discovered Areas 7 | . . . . . . . . . . 1 2 . . . . . 3 1 . . . . Known Exits Taken 19 | . 1 1 1 1 1 1 1 1 1 1 1 1 . 1 1 1 1 1 1 1 . . Unknown Exits Taken 1 | 1 . . . . . . . . . . . . . . . . . . . . . . Scrap Searched 18 | . . . . . . . . 5 4 . 3 . . . 1 3 . 2 . . . . Spaces Dug . | . . . . . . . . . . . . . . . . . . . . . . . Terrain Destroyed 9 | . . . . . . 9 . . . . . . . . . . . . . . . . Melee . | . . . . . . . . . . . . . . . . . . . . . . . Projectile 1 | . . . . . . 1 . . . . . . . . . . . . . . . . AOE 8 | . . . . . . 8 . . . . . . . . . . . . . . . . Terrain Rammed . | . . . . . . . . . . . . . . . . . . . . . . . Walls Destroyed . | . . . . . . . . . . . . . . . . . . . . . . . Machines Disabled . | . . . . . . . . . . . . . . . . . . . . . . . Actions | -11 -10 -10 -10 -9 -8 -8 -7 -7 -7 -7 -6 -6 -6 -5 -5 -5 -5 -4 -4 -3 -3 -2 --------- Run | Yrd Mat Min Exi Min Mat Sto Fac Low Low Dat Pro Fac DSF Fac Upp Upp Zhi Pro Fac Res DSF Res Total 8326 | 55 643 394 611 160 219 1126 164 290 726 94 936 77 108 544 281 236 226 607 245 132 33 419 Wait 442 | 8 61 9 . 6 16 166 . . 13 . 142 . . 5 . . 12 4 . . . . Move 7329 | 36 472 376 601 141 152 744 162 285 691 94 788 77 102 525 279 230 193 584 240 131 29 397 Hop 47 | . . . . . 3 24 . 1 2 . . . 1 6 . . . . . . . 10 Pick Up 98 | 6 24 2 2 . 5 22 1 2 6 . 1 . . 2 1 3 9 5 2 . . 5 Fast Attach . | . . . . . . . . . . . . . . . . . . . . . . . Attach 74 | 5 6 . . . 8 15 1 2 6 . . . 1 4 . 2 10 7 2 1 . 4 Detach 9 | . . . . . . 3 . . 2 . . . 1 . . . . 3 . . . . Swap 12 | . 7 . . . . 4 . . . . . . . . . . . . 1 . . . Drop 41 | . 12 2 5 . 1 9 . . 3 . 1 . . . . 1 . 4 . . . 3 Fire 204 | . 60 4 . 13 34 84 . . 3 . 4 . . 2 . . . . . . . . Melee 2 | . . . . . . . . . . . . . 2 . . . . . . . . . Ram 1 | . . . . . . . . . . . . . . . 1 . . . . . . . Kick 2 | . 1 1 . . . . . . . . . . . . . . . . . . . . Crush . | . . . . . . . . . . . . . . . . . . . . . . . Escape Stasis 4 | . . . . . . . . . . . . . . . . . . . . . 4 . Rewire 6 | . . . 3 . . . . . . . . . 1 . . . 2 . . . . . Trap 55 | . . . . . . 55 . . . . . . . . . . . . . . . . Miscellaneous . | . . . . . . . . . . . . . . . . . . . . . . . Route ------- -11/Scrapyard -10/Materials (discovered 3 exits: *Mat / *Min x2) -10/Mines (discovered 2 exits: *Mat / *Exi) -10/Exiles (discovered 2 exits: *Min x2) -9/Mines -8/Materials (discovered 2 exits: *Sto x2) -8/Storage (discovered 2 exits: *Fac / Rec) -7/Factory -7/Lower Caves -7/Lower Caves (discovered 2 exits: *Fac / *Dat) -7/Data Miner -6/Proximity Caves -6/Factory (discovered 2 exits: Fac / DSF) -6/DSF -5/Factory (discovered 2 exits: *Upp x2) -5/Upper Caves -5/Upper Caves -5/Zhirov -4/Proximity Caves -4/Factory -3/Research -3/DSF -2/Research History --------- Turn | Location | Event 6 | -11/Scrapyard | Discovered new exit (range 16) 58 | -11/Scrapyard | Entered Materials 58 | -10/Materials | Discovered new exit (range 16) 218 | -10/Materials | Discovered new exit (range 10) 311 | -10/Materials | Build established: Mutant 316 | -10/Materials | Discovered new exit (range 15) 719 | -10/Materials | Identified exit to Mines 913 | -10/Materials | Entered Mines 1003 | -10/Mines | Discovered new exit (range 13) 1025 | -10/Mines | Identified exit to Materials 1172 | -10/Mines | Build established: Scavenger-Mutant 1322 | -10/Mines | Deemed a non-threat by the Exiles lab entrance 1322 | -10/Mines | Discovered new exit (range 5) 1326 | -10/Mines | Identified exit to Exiles 1387 | -10/Mines | Entered Exiles 1387 | -10/Exiles | Accompanied by 2 allies 1417 | -10/Exiles | Led the pair of lost Derelicts to a safe place 1417 | -10/Exiles | Met 8R-AWN 1438 | -10/Exiles | Met EX-HEX 1471 | -10/Exiles | Met EX-BIN 1492 | -10/Exiles | Aligned with FarCom system 1493 | -10/Exiles | Given EX-Vault access code 1533 | -10/Exiles | Opened EX-Vault 1598 | -10/Exiles | Found Flying Fortress v7 1626 | -10/Exiles | Warned to stay clear of 0b10 Research branches 1661 | -10/Exiles | Met EX-DEC 1701 | -10/Exiles | Visited The Gauntlet 1877 | -10/Exiles | Discovered new exit (range 14) 1891 | -10/Exiles | Identified exit to Mines 2103 | -10/Exiles | Discovered exit to Mines (range 14) 2116 | -10/Exiles | Left Exiles lab with Flying Fortress v7 2116 | -10/Exiles | Entered Mines 2247 | -9/Mines | Core integrity fell below 50% 2272 | -9/Mines | Core integrity fell below 20% 2298 | -9/Mines | Discovered new exit (range 14) 2318 | -9/Mines | Identified exit to Materials 2325 | -9/Mines | Entered Materials 2325 | -8/Materials | Evolved 4 slots: Propulsion x2, Utility x2 2326 | -8/Materials | Identified exit to Storage 2515 | -8/Materials | Discovered exit to Storage (range 14) 2522 | -8/Materials | Entered Storage 2818 | -8/Storage | Repaired Imp. Light Armor Plating 3039 | -8/Storage | Build established: Mutant 3043 | -8/Storage | Identified exit to Recycling 3193 | -8/Storage | Core integrity fell below 50% 3276 | -8/Storage | Met a pair of Derelict thieves 3338 | -8/Storage | Core integrity fell below 20% 3342 | -8/Storage | Discovered new exit (range 6) 3348 | -8/Storage | Identified exit to Factory 3349 | -8/Storage | Entered Factory 3349 | -7/Factory | Evolved 2 slots: Weapon x2 3366 | -7/Factory | Lost 3 parts (1p1n1u) 3400 | -7/Factory | Discovered new exit (range 10) 3406 | -7/Factory | Identified exit to Lower Caves 3407 | -7/Factory | Entered Lower Caves 3456 | -7/Lower Caves | Learned 4 Factory zone layouts 3460 | -7/Lower Caves | Learned Factory terminal intel 3505 | -7/Lower Caves | Discovered new exit (range 6) 3509 | -7/Lower Caves | Identified exit to Lower Caves 3509 | -7/Lower Caves | Entered another Lower Caves area 3515 | -7/Lower Caves | Encountered a Warlord checkpoint 3529 | -7/Lower Caves | Discovered new exit (range 6) 3531 | -7/Lower Caves | Identified exit to Factory 3599 | -7/Lower Caves | Attracted the attention of an 0b10 checkpoint 3765 | -7/Lower Caves | Learned Factory stockpile data 3774 | -7/Lower Caves | Discovered new exit (range 15) 3779 | -7/Lower Caves | Identified exit to Data Miner 3789 | -7/Lower Caves | Entered Data Miner 3789 | -7/Data Miner | Discovered new exit (range 6) 3791 | -7/Data Miner | Identified exit to Proximity Caves 3798 | -7/Data Miner | Met Data Miner 3808 | -7/Data Miner | Learned location of Section 7 (-2) 3808 | -7/Data Miner | Acquired the access code to Warlord's prototype stash 3816 | -7/Data Miner | Received God Mode back door access code from Data Miner 3824 | -7/Data Miner | Entered Proximity Caves 3849 | -6/Proximity Caves | Learned 4 Factory zone layouts 3886 | -6/Proximity Caves | Spotted B-75 Beast 3891 | -6/Proximity Caves | Escorted by Enhanced Grunt 3942 | -6/Proximity Caves | Learned location of Zion (-6) 3960 | -6/Proximity Caves | Spotter reported a threat 4106 | -6/Proximity Caves | Spotter reported a threat 4158 | -6/Proximity Caves | Learned location of 2 exits from Lower Caves 4217 | -6/Proximity Caves | Discovered exit to Factory (range 4) 4268 | -6/Proximity Caves | Entered Factory 4268 | -6/Factory | Evolved 2 slots: Utility x2 4269 | -6/Factory | Identified exit to Factory 4271 | -6/Factory | Loaded intel: 26 terminal locations 4297 | -6/Factory | Identified exit to DSF 4297 | -6/Factory | Entered DSF 4303 | -6/DSF | Discovered exit to Factory (range 15) 4322 | -6/DSF | Additional patrols routed to DSF 4341 | -6/DSF | Entered Factory 4341 | -5/Factory | Evolved 2 slots: Utility x2 4342 | -5/Factory | Identified exit to Upper Caves 4450 | -5/Factory | Spotted B-75 Beast 4501 | -5/Factory | Lost 6 parts (1p2n2u1w) 4506 | -5/Factory | Incoming investigation squad redirected 4517 | -5/Factory | Incoming investigation squad redirected 4595 | -5/Factory | Entered Upper Caves 4636 | -5/Upper Caves | Spotted B-75 Beast 4637 | -5/Upper Caves | Learned Factory trap positions 4690 | -5/Upper Caves | Core integrity fell below 50% 4725 | -5/Upper Caves | Lost 4 parts (1n1u2w) 4730 | -5/Upper Caves | Discovered new exit (range 5) 4732 | -5/Upper Caves | Identified exit to Upper Caves 4733 | -5/Upper Caves | Entered another Upper Caves area 4759 | -5/Upper Caves | Learned 4 Factory zone layouts 4824 | -5/Upper Caves | Learned location of 1 exit from Factory 4834 | -5/Upper Caves | Discovered new exit (range 13) 4838 | -5/Upper Caves | Identified exit to Zhirov 4854 | -5/Upper Caves | Entered Zhirov 4854 | -5/Zhirov | Discovered new exit (range 3) 4855 | -5/Zhirov | Identified exit to Proximity Caves 4864 | -5/Zhirov | Met Zhirov 4875 | -5/Zhirov | Learned location of Quarantine (-2) 4875 | -5/Zhirov | Learned location of Testing (-3) 4875 | -5/Zhirov | Learned location of Command (-1) 4885 | -5/Zhirov | Zhirov requested help retrieving the SGEMP Prototype 4893 | -5/Zhirov | Found Alien Artifact 4894 | -5/Zhirov | Identified Integrated Reactor 4894 | -5/Zhirov | Installed Integrated Reactor, increased core energy generation (+10) 4903 | -5/Zhirov | Found Alien Artifact 4904 | -5/Zhirov | Identified Transdimensional Reconstructor 4904 | -5/Zhirov | Warped through subspace 4989 | -5/Zhirov | Entered Proximity Caves 5159 | -4/Proximity Caves | Core integrity fell below 20% 5204 | -4/Proximity Caves | Attracted the attention of an 0b10 outpost 5207 | -4/Proximity Caves | Learned 4 Research zone layouts 5253 | -4/Proximity Caves | Discovered new exit (range 5) 5255 | -4/Proximity Caves | Identified exit to Factory 5255 | -4/Proximity Caves | Entered Factory 5255 | -4/Factory | Evolved 2 slots: Utility x2 5256 | -4/Factory | Identified exit to Research 5258 | -4/Factory | Loaded intel: 104 trap records 5316 | -4/Factory | Incoming investigation squad redirected 5341 | -4/Factory | Central database locked down 5364 | -4/Factory | Entered Research 5364 | -3/Research | Evolved 2 slots: Utility x2 5378 | -3/Research | Adv. Hacking Suite fried by hacking feedback 5401 | -3/Research | Incoming investigation squad redirected 5409 | -3/Research | Lost 3 parts (1n2u) 5418 | -3/Research | Identified exit to DSF 5418 | -3/Research | Entered DSF 5424 | -3/DSF | Discovered new exit (range 15) 5434 | -3/DSF | Identified exit to Research 5435 | -3/DSF | Additional patrols routed to DSF 5435 | -3/DSF | Entered Research 5435 | -2/Research | Evolved 2 slots: Utility x2 5500 | -2/Research | Spotted B-90 Cyclops 5560 | -2/Research | Released all parts (2) 5561 | -2/Research | Core integrity fell below 50% 5573 | -2/Research | Core integrity fell below 20% 5577 | -2/Research | Destroyed by H-81 Overseer with Heavy Linear Accelerator Last Messages --------------- Signal Interpreter destroyed. S-43 Plague knocked back. S-43 Plague system corrupted by crushing effect. Cld. Impulse Thruster destroyed. Knocked back. Cld. Impulse Thruster destroyed. Knocked back. Penetrated by Slug. Released Imp. Matter Compressor. Released Adv. Energy Well. Slug penetrates Wall. Penetrated by Slug. Slug penetrates Wall. Penetrated by Slug. Knocked back. Penetrated by Slug. Knocked back. [Achievement: 10k Club] [Achievement: This Is Interesting...] Map ----- +----------------------------------------------------+ | % #########??????????????? | | ##########"######+#### # #??????????????? | | ##??# #???????# # #??????????????? | | ????# #???????# " #??????????????? | | ????# #???????# # #??????????????? | | ????# #???????# # #??????????????? | | ????#####+#####???????# #########??????????????? | | ????????# #???????????# s# ] !!#??????????????? | | ????????# #???????????# + ! ! #??????????????? | | ????????# #?#######???# s # = #??????????????? | | ????????# #? #???# % #########??????????????? | | #####???# # !!#???# #??????????????????????? | | ##??# # !!#???# #??????????????????????? | | #??# + #???# #??#####???????????????? | | "" #???# # = #???# #? #???????????????? | | "" #???# ###########?#% ^#? #???????????????? | | "" #???# #????# ?# # #???????????????? | | #???# #?????? # # ! #???????????????? | | #???# #???????? + % + ! #???????????????? | | #####???# #?????????? ; # #???????????????? | | *#??????# #???????????# ########???????????????? | | ######## #???????????# # = #???????????????? | | #???????????# # #???????????????? | | ##########???????????+ + = #???????????????? | | #????????????????????# % # #???????????????? | | ##????????????????????# @########???????????????? | | ??????????????????????# #??????????????????????? | | ??????????????????????# #??????????????????????? | | ??????????????????????# #??????????????????????? | | ??????????????????????# #??????????????????????? | | ??????????????????????# #??????????????????????? | | ?????????????????????? ??????????????????????? | | ?????????????????????? ??????????????????????? | | ?????????????????????+ H ??????????????????????? | | ?????????????????????# ??????????????????????? | | ?????????????????????# ]??????????????????????? | | ?????????????????????### ##??????????????????????? | | ???????????????????????# ????????????????????????? | | ???????????????????????? ????????????????????????? | | ???????????????????????? ????????????????????????? | | ???????????????????????? ????????????????????????? | | ?????????????????????????????????????????????????? | | ?????????????????????????????????????????????????? | | ?????????????????????????????????????????????????? | | ?????????????????????????????????????????????????? | | ?????????????????????????????????????????????????? | | ?????????????????????????????????????????????????? | | ?????????????????????????????????????????????????? | | ?????????????????????????????????????????????????? | | ?????????????????????????????????????????????????? | +----------------------------------------------------+ Best States ------------- Heat Dissipation 49 Energy Generation 33 Energy Capacity 795 Matter Stores 472 Matter Capacity 600 Sight Range 22 Terrain Scan Density 10 ECM Strength 1 Cloak Strength 2 Armor Coverage 300 Evasion (%) 65 Offensive Hacking 14 Defensive Hacking 10 Authchip Count 1 Item Schematics ----------------- Combat Drone Bay | -7/Data Miner | Free Lgt. Regenerative Plating | -7/Data Miner | Free Cld. Aerolev Unit | -7/Data Miner | Free Gravity Neutralizer | -7/Data Miner | Free Imp. Heavy Laser | -7/Data Miner | Free Nuclear Pulse Array | -7/Data Miner | Free Imp. Recalibrator | -7/Data Miner | Free Imp. Cryofiber Web | -7/Data Miner | Free Imp. Plasma Cutter | -7/Data Miner | Free Wave Gun | -7/Data Miner | Free Adv. Cryofiber Web | -7/Data Miner | Free Assault Drone Bay | -5/Zhirov | Free Exp. Heat Sink | -5/Zhirov | Free Exp. Optical Array | -5/Zhirov | Free Imp. Arc Thrower | -5/Zhirov | Free Robot Schematics ------------------ L-41 Fighter | -7/Data Miner | Free W-25 Informer | -7/Data Miner | Free B-48 Gladiator | -7/Data Miner | Free X-67 Chaingunner | -7/Data Miner | Free G-50 Soldier | -7/Data Miner | Free M-22 Extractor | -7/Data Miner | Free Fabricated ------------ Nothing Alien Tech Used ----------------- Integrated Reactor Transdimensional Reconstructor Achievements -------------- 10k Club Adventurer Alien Tech Can't Catch Me Cya! Dangerous Findings Explorer I'm Back, Baby! Knowing Is Half The Battle Origins Party Time Power Corrupts Subspace Traveler The Oracle The Science Guy This Is Interesting... Challenges ------------ None Game ------ Seed ProtonBarrageBoomstick Manual? 0 Play Time 02:15:37 Cumulative 20.1 hours Start 2024.04.07 @ 19:55:12 End 2024.04.07 @ 22:38:09 Sessions 1 Manual Loads 0 Difficulty Rogue Special Mode None Game No. 16 Rogue 16 Adventurer 0 Explorer 0 Win Type - Total 0 Types 0/0/0/0/0/0/0/0/0 Lore% 25 Gallery% 17 Achievement% 22 Wizard Run 0 Options --------- Layout 1 ASCII 0 Keyboard 0 Movement Mouse Keybinds 0 Fullscreen 2 Font 20/SmallcapsGlow Map View 54x42 Zoom Use 0% Tactical HUD 0 Map Filters NONE Filters NONE Steam 1 RUN: 559f6bb8-0e47-474f-9ba1-8125922b0975